bitfinex/quotes_BTCUSD_20240811
["timestamp","ask_amount","ask_price","bid_price","bid_amount"]
[1723420358029,0.002829,58841.0,58840.0,1.56709867]
[1723420358231,0.002829,58841.0,58840.0,1.55709867]
[1723420358443,0.003829,58841.0,58840.0,1.5922348]
[1723420358621,0.003829,58841.0,58840.0,1.60262293]
[1723420358826,0.001829,58841.0,58840.0,1.31040827]
[1723420359255,0.000829,58841.0,58840.0,1.2515638]
[1723420359461,0.000829,58841.0,58840.0,1.1189186]
[1723420359675,0.000829,58841.0,58840.0,1.1329186]
[1723420360080,0.000829,58841.0,58840.0,1.1209186]
[1723420360311,0.001829,58841.0,58840.0,1.1349186]
[1723420360518,0.000829,58841.0,58840.0,1.1579186]
[1723420360727,0.000829,58841.0,58840.0,1.2898561]
[1723420360928,0.001829,58841.0,58840.0,1.3038561]
[1723420361106,0.001829,58841.0,58840.0,1.1719186]
[1723420361280,0.001829,58841.0,58840.0,1.4438416]
[1723420361483,0.001829,58841.0,58840.0,1.57577946]
[1723420362313,0.001829,58841.0,58840.0,1.30385646]
[1723420362835,0.001829,58841.0,58840.0,1.4538416]
[1723420363185,0.001829,58841.0,58840.0,1.5857039]
[1723420363387,0.001829,58841.0,58840.0,1.4538416]
[1723420363584,0.001829,58841.0,58840.0,1.65630031]
[1723420363783,0.001829,58841.0,58840.0,1.58572694]
[1723420365441,0.001829,58841.0,58840.0,1.58582773]
[1723420369077,0.001829,58841.0,58840.0,1.4538416]
[1723420369254,0.001829,58841.0,58840.0,1.85814538]
[1723420369506,0.001829,58841.0,58840.0,1.58622238]
[1723420369918,0.001829,58841.0,58840.0,1.88498985]
[1723420370131,0.001829,58841.0,58840.0,1.95555844]
[1723420370338,0.000829,58845.0,58844.0,1.235572]
[1723420370524,0.000829,58845.0,58844.0,2.13722859]
[1723420370849,0.000829,58845.0,58844.0,2.16407306]
[1723420370997,0.000829,58845.0,58844.0,2.43597806]
[1723420371384,0.000829,58845.0,58844.0,2.52074769]
[1723420371592,0.001829,58845.0,58844.0,2.48296806]
[1723420371812,0.001829,58845.0,58844.0,2.44312359]
[1723420372016,0.001829,58845.0,58844.0,2.46996806]
[1723420372214,0.000829,58864.0,58863.0,1.104959]
[1723420372541,0.000829,58864.0,58863.0,1.31578247]
[1723420373307,0.000829,58864.0,58863.0,1.32978247]
[1723420373519,0.000829,58864.0,58863.0,1.33178247]
[1723420373931,0.000829,58864.0,58863.0,1.32978247]
[1723420374352,0.000829,58864.0,58863.0,1.34178247]
[1723420374557,0.000829,58864.0,58863.0,1.32778247]
[1723420374799,0.000829,58864.0,58863.0,1.32978247]
[1723420374980,0.000829,58864.0,58863.0,1.34378247]
[1723420375394,0.000829,58864.0,58863.0,1.32978247]
[1723420375599,0.000829,58864.0,58863.0,1.34378247]
[1723420376046,0.000829,58864.0,58863.0,1.35425263]
[1723420376257,0.000829,58864.0,58863.0,1.34225263]
[1723420376441,0.000829,58864.0,58863.0,1.61406963]
[1723420376575,0.000829,58864.0,58863.0,1.85315519]
[1723420377680,0.000829,58864.0,58863.0,1.83915519]
[1723420377879,0.000829,58864.0,58863.0,1.85315519]
[1723420378386,0.000829,58864.0,58863.0,1.86915519]
[1723420378567,0.000829,58864.0,58863.0,1.85515519]
[1723420378964,0.000829,58864.0,58863.0,1.86915519]
[1723420379924,0.000829,58864.0,58863.0,1.72806963]
[1723420380133,0.000829,58864.0,58863.0,1.86915094]
[1723420381251,0.000829,58864.0,58863.0,1.85515094]
[1723420381477,0.000829,58864.0,58863.0,2.12696794]
[1723420381906,0.000829,58864.0,58863.0,2.14096794]
[1723420381908,0.000829,58864.0,58863.0,2.18350223]
[1723420382151,0.000829,58864.0,58863.0,2.21749223]
[1723420382403,0.000829,58864.0,58863.0,2.03187663]
[1723420382660,0.000829,58864.0,58863.0,2.49417255]
[1723420382904,0.000829,58864.0,58863.0,2.50817255]
[1723420383197,0.000828,58871.0,58870.0,1.646517]
[1723420383458,0.000828,58871.0,58870.0,2.27719459]
[1723420383957,0.000828,58871.0,58870.0,2.34771971]
[1723420384479,0.000828,58871.0,58870.0,2.37456418]
[1723420384733,0.000828,58871.0,58870.0,2.4680786]
[1723420385023,0.000828,58873.0,58872.0,1.651168]
[1723420385261,0.000828,58891.0,58890.0,1.105322]
[1723420385523,0.000828,58891.0,58890.0,1.78185666]
[1723420385777,0.000828,58891.0,58890.0,1.83169145]
[1723420386046,0.000828,58891.0,58890.0,1.41897171]
[1723420386300,0.000828,58891.0,58890.0,1.65368742]
[1723420386858,0.000828,58891.0,58890.0,1.92537942]
[1723420387618,0.000828,58891.0,58890.0,1.97049534]
[1723420387877,0.000828,58891.0,58890.0,1.99888766]
[1723420388135,0.000828,58891.0,58890.0,2.04400358]
[1723420388393,0.000828,58891.0,58890.0,2.00866858]
[1723420388652,0.000828,58891.0,58890.0,1.93555266]
[1723420388903,0.000828,58891.0,58890.0,1.94955266]
[1723420389132,0.000828,58891.0,58890.0,2.01133168]
[1723420389454,0.000828,58891.0,58890.0,1.99733168]
[1723420389612,0.000828,58891.0,58890.0,1.80852833]
[1723420389823,0.000828,58891.0,58890.0,1.94953281]
[1723420390686,0.000828,58891.0,58890.0,1.96353281]
[1723420390900,0.000828,58891.0,58890.0,1.94953281]
[1723420391099,0.000828,58891.0,58890.0,1.93553281]
[1723420391238,0.000828,58891.0,58890.0,1.96353281]
[1723420391439,0.000828,58891.0,58890.0,1.94953281]
[1723420391859,0.00828,58895.0,58894.0,0.962859]
[1723420392052,0.00828,58895.0,58894.0,1.76408695]
[1723420392254,0.00828,58895.0,58894.0,2.06852232]
[1723420393176,0.00828,58895.0,58894.0,2.06851272]
[1723420393389,0.00828,58895.0,58894.0,2.34018672]
[1723420393604,1e-08,58895.0,58894.0,2.37417672]
[1723420393808,0.00829,58904.0,58899.0,1.234429]
[1723420394021,0.00829,58904.0,58899.0,1.80393333]
[1723420394229,0.00829,58904.0,58899.0,2.07558433]
[1723420395066,0.00829,58904.0,58899.0,1.92838032]
[1723420395245,0.00829,58904.0,58899.0,1.90961895]
[1723420395491,0.00829,58904.0,58899.0,1.92161895]
[1723420395695,0.00829,58904.0,58899.0,1.92162533]
[1723420395873,0.00829,58904.0,58899.0,1.90762533]
[1723420396102,0.00829,58904.0,58899.0,1.90962533]
[1723420396304,0.00829,58904.0,58899.0,1.9197357]
[1723420397073,0.00829,58904.0,58899.0,1.9057357]
[1723420397287,0.00829,58904.0,58899.0,1.9197357]
[1723420397489,0.00829,58904.0,58899.0,1.9337357]
[1723420397884,0.00829,58904.0,58899.0,1.9057357]
[1723420398090,0.00829,58904.0,58899.0,1.9197357]
[1723420398273,0.00829,58904.0,58899.0,1.9337357]
[1723420400220,0.00829,58904.0,58899.0,1.9317357]
[1723420400642,0.00829,58904.0,58899.0,1.79074567]
[1723420400847,0.00829,58904.0,58899.0,1.93373476]
[1723420402806,0.602949,58900.0,58899.0,0.17909946]
[1723420403011,0.602949,58900.0,58899.0,0.16898909]
[1723420403012,0.884595,58900.0,58899.0,0.16898909]
[1723420403229,1.97436366,58900.0,58899.0,0.028]
[1723420403466,0.01,58881.0,58876.0,0.271757]
[1723420403676,0.01,58874.0,58873.0,0.417656]
[1723420403882,0.08184646,58878.0,58877.0,0.135876]
[1723420404136,0.08184646,58878.0,58877.0,0.16381492]
[1723420404344,0.01,58871.0,58870.0,0.135892]
[1723420404559,0.01,58875.0,58872.0,0.135887]
[1723420404813,0.01,58873.0,58872.0,0.135887]
[1723420405017,0.01803988,58874.0,58872.0,0.23457891]
[1723420405195,0.01,58871.0,58870.0,0.4358559]
[1723420405433,0.01,58872.0,58871.0,0.40767]
[1723420405633,0.01,58872.0,58871.0,0.54875574]
[1723420405834,0.01,58873.0,58872.0,0.137887]
[1723420406039,0.01,58874.0,58872.0,0.137887]
[1723420406242,0.01,58874.0,58873.0,0.20860485]
[1723420406658,0.02787651,58874.0,58873.0,0.23160485]
[1723420406839,0.01,58874.0,58873.0,0.23160485]
[1723420407014,0.02787651,58874.0,58873.0,0.23160485]
[1723420407231,0.196877,58877.0,58873.0,0.23160485]
[1723420407428,0.02887651,58874.0,58873.0,0.23860485]
[1723420407991,0.01887651,58874.0,58873.0,0.37648985]
[1723420408210,0.01787651,58874.0,58873.0,0.36948985]
[1723420408361,0.02787651,58874.0,58873.0,0.36948985]
[1723420408723,0.01787651,58874.0,58873.0,0.36948985]
[1723420408928,0.01787651,58874.0,58873.0,0.37348985]
[1723420409189,0.01771826,58874.0,58873.0,0.37348985]
[1723420409432,0.01771826,58874.0,58873.0,0.91703185]
[1723420409563,0.01,58881.0,58880.0,0.135869]
[1723420409778,0.01,58881.0,58880.0,0.22757602]
[1723420409779,0.02786068,58881.0,58880.0,0.22757602]
[1723420410196,0.01786068,58881.0,58880.0,0.36684145]
[1723420410409,0.01786068,58881.0,58880.0,0.91031945]
[1723420410613,0.01786068,58881.0,58880.0,0.90692302]
[1723420410877,0.01,58887.0,58883.0,0.271722]
[1723420411038,0.01,58889.0,58885.0,0.135857]
[1723420411251,0.02,58894.0,58892.0,0.135841]
[1723420411457,0.194232,58896.0,58893.0,0.16381492]
[1723420411458,0.081,58895.0,58893.0,0.16381492]
[1723420411648,0.081,58895.0,58894.0,0.135837]
[1723420411649,0.071,58895.0,58894.0,0.135837]
[1723420411863,0.02,58897.0,58894.0,0.20860485]
[1723420412038,0.135825,58899.0,58895.0,0.16381492]
[1723420412280,0.135825,58899.0,58897.0,0.135829]
[1723420412281,0.01,58898.0,58897.0,0.135829]
[1723420412491,0.01,58898.0,58897.0,0.18681492]
[1723420412492,0.145828,58898.0,58897.0,0.18681492]
[1723420412860,0.427484,58898.0,58897.0,0.02350004]
[1723420413038,0.427484,58898.0,58889.0,0.271695]
[1723420413039,0.01,58892.0,58891.0,0.135843]
[1723420413249,0.01,58894.0,58891.0,0.32265792]
[1723420413494,0.01,58894.0,58892.0,0.18681492]
[1723420413703,0.155833,58896.0,58892.0,0.18681492]
[1723420413880,0.02,58895.0,58894.0,0.01]
[1723420414120,0.02,58895.0,58894.0,0.04526579]
[1723420414323,0.02,58895.0,58894.0,0.03326579]
[1723420414532,0.01,58895.0,58894.0,0.03326579]
[1723420415349,0.01,58895.0,58894.0,0.03426579]
[1723420415595,0.01,58895.0,58894.0,0.03726579]
[1723420416669,0.01,58895.0,58894.0,0.03426579]
[1723420416803,0.01786068,58895.0,58894.0,0.16910279]
[1723420417005,0.01786068,58895.0,58894.0,0.03326579]
[1723420417006,0.02986068,58895.0,58894.0,0.03326579]
[1723420417224,0.012,58895.0,58894.0,0.03326579]
[1723420417448,0.03086068,58895.0,58894.0,0.03926579]
[1723420417626,0.013,58895.0,58894.0,0.03926579]
[1723420417826,0.02786068,58895.0,58894.0,0.03326579]
[1723420418227,0.02786068,58895.0,58894.0,0.03826579]
[1723420418510,0.03786068,58895.0,58894.0,0.03826579]
[1723420418712,0.03786068,58895.0,58894.0,0.03926579]
[1723420419126,0.02786068,58895.0,58894.0,0.03926579]
[1723420419772,0.02786068,58895.0,58894.0,0.03426579]
[1723420420124,0.02886068,58895.0,58894.0,0.03926579]
[1723420420574,0.02786068,58895.0,58894.0,0.03326579]
[1723420420782,0.02786068,58895.0,58894.0,0.03826579]
[1723420421446,0.02786068,58895.0,58894.0,0.03326579]
[1723420421652,0.78786068,58895.0,58894.0,0.03426579]
[1723420421859,0.78786068,58895.0,58894.0,0.03326579]
[1723420422296,0.78886068,58895.0,58894.0,0.03926579]
[1723420423537,0.78886068,58895.0,58894.0,0.03326579]
[1723420423538,0.78786068,58895.0,58894.0,0.03326579]
[1723420423859,0.78786068,58895.0,58894.0,0.03426579]
[1723420424026,0.78786068,58895.0,58894.0,0.03926579]
[1723420424395,0.78786068,58895.0,58894.0,0.03426579]
[1723420424595,0.78886068,58895.0,58894.0,0.04026579]
[1723420424991,0.78886068,58895.0,58894.0,0.03926579]
[1723420425196,0.78868768,58895.0,58894.0,0.03326579]
[1723420425395,0.78868768,58895.0,58894.0,0.03826579]
[1723420426665,0.78868768,58895.0,58894.0,0.03326579]
[1723420426836,0.78868768,58895.0,58894.0,0.03426579]
[1723420427038,0.78968768,58895.0,58894.0,0.03926579]
[1723420427525,0.78968768,58895.0,58894.0,0.03326579]
[1723420427526,0.78868768,58895.0,58894.0,0.03326579]
[1723420427910,0.78868768,58895.0,58894.0,0.03826579]
[1723420428348,0.78868768,58895.0,58894.0,0.03326579]
[1723420428788,0.78968768,58895.0,58894.0,0.03926579]
[1723420429856,0.78868768,58895.0,58894.0,0.03326579]
[1723420430273,0.78868768,58895.0,58894.0,0.03926579]
[1723420430693,0.78868768,58895.0,58894.0,0.03426579]
[1723420431119,0.78968768,58895.0,58894.0,0.03926579]
[1723420431547,0.78868768,58895.0,58894.0,0.03326579]
[1723420431936,0.78868768,58895.0,58894.0,0.17410279]
[1723420432434,0.01868768,58895.0,58894.0,1.14636134]
[1723420432626,0.01868768,58895.0,58894.0,1.84274644]
[1723420432826,0.000827,58895.0,58894.0,1.84274644]
[1723420433033,0.000827,58895.0,58894.0,1.91324979]
[1723420433234,0.000827,58895.0,58894.0,1.84274644]
[1723420433407,0.000827,58895.0,58894.0,1.63659211]
[1723420433618,0.000827,58895.0,58894.0,1.57108979]
[1723420433758,0.001827,58895.0,58894.0,1.59108979]
[1723420433964,0.002827,58895.0,58894.0,1.59108979]
[1723420434185,0.002827,58895.0,58894.0,1.84876379]
[1723420434445,0.002827,58895.0,58894.0,1.85676379]
[1723420434669,0.002827,58895.0,58894.0,2.11843779]
[1723420434873,0.003827,58895.0,58894.0,2.60274164]
[1723420435400,0.003827,58895.0,58894.0,2.39118207]
[1723420435819,0.003827,58895.0,58894.0,2.60274164]
[1723420436040,0.003827,58895.0,58894.0,2.39118207]
[1723420436473,0.003827,58895.0,58894.0,2.60274164]
[1723420437091,0.003827,58895.0,58894.0,2.07389588]
[1723420437438,0.003827,58895.0,58894.0,2.60260981]
[1723420437663,0.003827,58895.0,58894.0,2.07389588]
[1723420437788,0.003827,58895.0,58894.0,2.6025833]
[1723420439018,0.003827,58895.0,58894.0,2.3059093]
[1723420439219,0.003827,58895.0,58894.0,2.09443433]
[1723420439472,0.003827,58895.0,58894.0,2.09643433]
[1723420440093,0.003827,58895.0,58894.0,2.3079093]
[1723420440315,0.003827,58895.0,58894.0,2.3289093]
[1723420440479,0.003827,58895.0,58894.0,2.11943433]
[1723420440694,0.003827,58895.0,58894.0,1.87272679]
[1723420440892,0.003827,58895.0,58894.0,2.11947697]
[1723420442082,0.003827,58895.0,58894.0,1.94322684]
[1723420443397,0.003827,58895.0,58894.0,1.80222674]
[1723420443592,0.003827,58895.0,58894.0,1.9432272]
[1723420447007,0.003827,58895.0,58894.0,1.80222662]
[1723420447240,0.003827,58895.0,58894.0,1.94322649]
[1723420447980,0.003827,58895.0,58894.0,2.11947574]
[1723420448642,0.003827,58895.0,58894.0,1.94322649]
[1723420449165,0.003827,58895.0,58894.0,2.11947603]
[1723420450708,0.003827,58895.0,58894.0,2.11947166]
[1723420451936,0.003827,58895.0,58894.0,1.94322516]
[1723420452347,0.003827,58895.0,58894.0,2.11947578]
[1723420452559,0.003827,58895.0,58894.0,1.94322516]
[1723420453093,0.003827,58895.0,58894.0,1.94323108]
[1723420453506,0.003827,58895.0,58894.0,2.1194818]
[1723420454261,0.003827,58895.0,58894.0,2.32898619]
[1723420454500,0.003827,58895.0,58894.0,2.11947697]
[1723420454920,0.003827,58895.0,58894.0,2.33097712]
[1723420455130,0.003827,58895.0,58894.0,2.11947697]
[1723420455534,0.003827,58895.0,58894.0,2.33097712]
[1723420455958,0.003827,58895.0,58894.0,2.11947697]
[1723420456314,0.003827,58895.0,58894.0,2.33097712]
[1723420458048,0.003827,58895.0,58894.0,2.15472675]
[1723420458247,0.003827,58895.0,58894.0,2.33097678]
[1723420458389,0.003827,58895.0,58894.0,2.32997678]
[1723420458588,0.003827,58895.0,58894.0,2.33097678]
[1723420459597,0.003827,58895.0,58894.0,1.80860278]
[1723420459808,0.003827,58895.0,58894.0,1.79562501]
[1723420460006,0.003827,58895.0,58894.0,1.33735794]
[1723420460240,0.003827,58895.0,58894.0,1.61937308]
[1723420460447,0.003827,58895.0,58894.0,1.4078652]
[1723420461086,0.003827,58895.0,58894.0,1.71937308]
[1723420461320,0.003827,58895.0,58894.0,1.74237308]
[1723420461496,0.003827,58895.0,58894.0,1.74437308]
[1723420461707,0.003827,58895.0,58894.0,1.92063948]
[1723420462207,0.003827,58895.0,58894.0,1.92064065]
[1723420462413,0.003827,58895.0,58894.0,1.91864065]
[1723420464348,0.003827,58895.0,58894.0,1.92064065]
[1723420464568,0.003827,58895.0,58894.0,1.91864065]
[1723420465401,0.003827,58895.0,58894.0,1.9186621]
[1723420466753,0.003827,58895.0,58894.0,2.3357361]
[1723420466956,0.003827,58895.0,58894.0,2.50444546]
[1723420467136,0.003827,58895.0,58894.0,2.53182655]
[1723420467336,0.003827,58895.0,58894.0,2.4049211]
[1723420467936,0.003827,58895.0,58894.0,2.40720634]
[1723420468312,0.003827,58895.0,58894.0,2.41419701]
[1723420468906,0.003827,58895.0,58894.0,2.15974418]
[1723420469168,0.003827,58895.0,58894.0,2.33798744]
[1723420469639,0.003827,58895.0,58894.0,2.3380006]
[1723420471780,0.003827,58895.0,58894.0,2.38882015]
[1723420472102,0.003827,58895.0,58894.0,2.3380006]
[1723420472553,0.003827,58895.0,58894.0,2.33599049]
[1723420472758,0.003827,58895.0,58894.0,1.83874667]
[1723420472759,0.123227,58895.0,58894.0,1.83874667]
[1723420473003,0.123227,58895.0,58894.0,1.71741832]
[1723420473208,0.123227,58895.0,58894.0,1.32965191]
[1723420473663,0.003827,58895.0,58894.0,1.18863793]
[1723420473859,0.003827,58895.0,58894.0,1.32966206]
[1723420474056,0.003827,58895.0,58894.0,1.41596206]
[1723420474259,0.003827,58895.0,58894.0,1.43896206]
[1723420474476,0.003827,58895.0,58894.0,2.00454985]
[1723420474719,0.003827,58895.0,58894.0,1.9470417]
[1723420474893,0.003827,58895.0,58894.0,1.9822649]
[1723420475101,0.003827,58895.0,58894.0,2.41104915]
[1723420475312,0.003827,58895.0,58894.0,2.43647581]
[1723420475482,0.003827,58895.0,58894.0,2.33476915]
[1723420475681,0.003827,58895.0,58894.0,1.99719515]
[1723420476065,0.003827,58895.0,58894.0,1.80110537]
[1723420476174,0.003827,58895.0,58894.0,1.77567343]
[1723420476373,0.003827,58895.0,58894.0,1.70939851]
[1723420476828,0.003827,58895.0,58894.0,1.75028608]
[1723420477227,0.003827,58895.0,58894.0,1.69939851]
[1723420477430,0.003827,58895.0,58894.0,1.75028608]
[1723420477635,0.003827,58895.0,58894.0,1.52313807]
[1723420477857,0.003827,58895.0,58894.0,1.98722395]
[1723420478033,0.003827,58895.0,58894.0,1.91089619]
[1723420478445,0.003827,58895.0,58894.0,1.92093609]
[1723420478813,0.003827,58895.0,58894.0,2.05014903]
[1723420479016,0.003827,58895.0,58894.0,2.32182303]
[1723420479239,0.003827,58895.0,58894.0,2.05014903]
[1723420479449,0.003827,58895.0,58894.0,2.32182303]
[1723420479912,0.003827,58895.0,58894.0,1.92293609]
[1723420480110,0.003827,58895.0,58894.0,2.05022059]
[1723420480352,0.003827,58895.0,58894.0,2.04822257]
[1723420480581,0.003827,58895.0,58894.0,1.32163793]
[1723420480786,0.003827,58895.0,58894.0,1.92089245]
[1723420481157,0.003827,58895.0,58894.0,2.05017727]
[1723420481357,0.003827,58895.0,58894.0,2.40405205]
[1723420481563,0.003827,58895.0,58894.0,2.27476645]
[1723420482302,0.003827,58895.0,58894.0,1.99309245]
[1723420482508,0.003827,58895.0,58894.0,1.92089245]
[1723420482702,0.003827,58895.0,58894.0,1.91089245]
[1723420483005,0.003827,58895.0,58894.0,2.02273918]
[1723420483157,0.003827,58895.0,58894.0,1.92089245]
[1723420483576,0.003827,58895.0,58894.0,2.04821138]
[1723420484291,0.003827,58895.0,58894.0,2.05021138]
[1723420484493,0.003827,58895.0,58894.0,1.92291526]
[1723420484652,0.003827,58895.0,58894.0,1.74757363]
[1723420484854,0.003827,58895.0,58894.0,1.87486975]
[1723420485338,0.003827,58895.0,58894.0,2.14654375]
[1723420485539,0.003827,58895.0,58894.0,1.74757363]
[1723420485797,0.003827,58895.0,58894.0,1.74557363]
[1723420485973,0.003827,58895.0,58894.0,1.87291482]
[1723420486962,0.003827,58895.0,58894.0,1.45188882]
[1723420487160,0.003827,58895.0,58894.0,1.80440458]
[1723420487387,0.003827,58895.0,58894.0,1.87491482]
[1723420487565,0.003827,58895.0,58894.0,2.14658882]
[1723420488188,0.003827,58895.0,58894.0,2.01924763]
[1723420488449,0.003827,58895.0,58894.0,1.74757363]
[1723420488850,0.003827,58895.0,58894.0,2.09484763]
[1723420489125,0.003827,58895.0,58894.0,2.15634763]
[1723420489322,0.003827,58895.0,58894.0,1.88667363]
[1723420489453,0.003827,58895.0,58894.0,1.81117363]
[1723420489654,0.003827,58895.0,58894.0,1.74557363]
[1723420491233,0.003827,58895.0,58894.0,1.74757363]
[1723420491563,0.003827,58895.0,58894.0,1.74757082]
[1723420491949,0.003827,58895.0,58894.0,1.74557082]
[1723420492357,0.003827,58895.0,58894.0,1.74757082]
[1723420493288,0.003827,58895.0,58894.0,2.01924482]
[1723420493661,0.003827,58895.0,58894.0,1.74757082]
[1723420493862,0.003827,58895.0,58894.0,2.01924482]
[1723420494064,0.003827,58895.0,58894.0,1.82857082]
[1723420494223,0.003827,58895.0,58894.0,2.00482747]
[1723420494424,0.003827,58895.0,58894.0,2.27650147]
[1723420494740,0.003827,58895.0,58894.0,2.00482747]
[1723420495149,0.003827,58895.0,58894.0,1.40554763]
[1723420495356,0.003827,58895.0,58894.0,2.00481253]
[1723420495553,0.003827,58895.0,58894.0,2.13215914]
[1723420495841,0.003827,58895.0,58894.0,1.95591747]
[1723420496054,0.003827,58895.0,58894.0,2.13217715]
[1723420496214,0.003827,58895.0,58894.0,2.13017715]
[1723420496416,0.003827,58895.0,58894.0,2.00283054]
[1723420496578,0.003827,58895.0,58894.0,1.99283054]
[1723420496782,0.003827,58895.0,58894.0,2.12017717]
[1723420496982,0.003827,58895.0,58894.0,2.13017717]
[1723420497183,0.003827,58895.0,58894.0,2.48425117]
[1723420497389,0.003827,58895.0,58894.0,2.54605117]
[1723420498680,0.003827,58895.0,58894.0,2.41870454]
[1723420498995,0.003827,58895.0,58894.0,2.41869752]
[1723420500317,0.003827,58895.0,58894.0,2.13702352]
[1723420500469,0.003827,58895.0,58894.0,2.14902352]
[1723420500670,0.003827,58895.0,58894.0,2.12017569]
[1723420500872,0.013827,58895.0,58894.0,2.02017569]
[1723420501070,0.062227,58895.0,58894.0,1.89282352]
[1723420501276,0.082227,58895.0,58894.0,0.77679274]
[1723420501478,0.082227,58895.0,58894.0,0.77681824]
[1723420501678,0.062227,58895.0,58894.0,1.04849224]
[1723420501851,0.060227,58895.0,58894.0,1.11549224]
[1723420502256,0.060227,58895.0,58894.0,1.12949224]
[1723420502257,0.081227,58895.0,58894.0,1.12949224]
[1723420502457,0.081227,58895.0,58894.0,1.11549224]
[1723420502655,0.081227,58895.0,58894.0,1.12349224]
[1723420502867,0.082227,58895.0,58894.0,1.12349224]
[1723420503106,0.120227,58895.0,58894.0,0.58500332]
[1723420503306,0.141227,58895.0,58894.0,0.59300332]
[1723420503508,0.142227,58895.0,58894.0,0.60700332]
[1723420503692,0.141227,58895.0,58894.0,0.59900332]
[1723420504093,0.15818559,58895.0,58894.0,0.58500332]
[1723420504325,0.15818559,58895.0,58894.0,0.59800332]
[1723420504924,0.15818559,58895.0,58894.0,0.45697173]
[1723420505128,0.15918559,58895.0,58894.0,0.60700714]
[1723420505592,0.15918559,58895.0,58894.0,0.60700761]
[1723420506100,0.141227,58895.0,58894.0,0.60700761]
[1723420506650,0.121227,58895.0,58894.0,0.87868161]
[1723420506856,0.141227,58895.0,58894.0,0.87868161]
[1723420507281,0.15918559,58895.0,58894.0,0.87868161]
[1723420507688,0.13918559,58895.0,58894.0,0.87868161]
[1723420507840,0.141227,58895.0,58894.0,0.87868161]
[1723420508551,0.141227,58895.0,58894.0,0.87868231]
[1723420509085,0.15918559,58895.0,58894.0,0.87868231]
[1723420510638,0.15918559,58895.0,58894.0,0.60700831]
[1723420510840,0.15918559,58895.0,58894.0,0.60700792]
[1723420511645,0.141227,58895.0,58894.0,0.60700792]
[1723420512059,0.141227,58895.0,58894.0,0.46597173]
[1723420512271,0.141227,58895.0,58894.0,0.60700839]
[1723420512473,0.15918559,58895.0,58894.0,0.60700839]
[1723420514927,0.15918559,58895.0,58894.0,0.87868239]
[1723420515481,0.001827,58895.0,58894.0,1.41337131]
[1723420515682,0.001827,58895.0,58894.0,0.92446065]
[1723420515941,0.011827,58895.0,58894.0,1.06548876]
[1723420516169,0.011827,58895.0,58894.0,0.92446065]
[1723420516405,0.001827,58895.0,58894.0,1.06548853]
[1723420516646,0.011827,58895.0,58894.0,1.06548853]
[1723420517475,0.001827,58895.0,58894.0,1.06548853]
[1723420517671,0.011827,58895.0,58894.0,1.06548853]
[1723420518591,0.001827,58895.0,58894.0,1.06548853]
[1723420519175,0.001827,58895.0,58894.0,1.33716143]
[1723420519953,0.001827,58895.0,58894.0,2.04228841]
[1723420520150,0.001827,58895.0,58894.0,2.14428841]
[1723420520546,0.001827,58895.0,58894.0,2.13428841]
[1723420520832,0.001827,58895.0,58894.0,1.83723543]
[1723420521132,0.001827,58895.0,58894.0,1.85023543]
[1723420521133,0.011827,58895.0,58894.0,1.85023543]
[1723420521304,0.000827,58895.0,58894.0,1.85123543]
[1723420521511,0.000827,58895.0,58894.0,1.84123543]
[1723420521714,0.000827,58895.0,58894.0,1.58356143]
[1723420521871,0.000827,58895.0,58894.0,1.64206901]
[1723420522275,0.000827,58895.0,58894.0,2.03087651]
[1723420522733,0.000827,58895.0,58894.0,2.04483926]
[1723420523228,0.000827,58895.0,58894.0,2.05483926]
[1723420523501,0.000827,58895.0,58894.0,1.66705247]
[1723420523814,0.000827,58895.0,58894.0,1.87857029]
[1723420523947,0.000827,58895.0,58894.0,2.13583685]
[1723420524142,0.000827,58895.0,58894.0,2.13383685]
[1723420524574,0.000827,58895.0,58894.0,2.13583685]
[1723420526075,0.000827,58895.0,58894.0,1.71280121]
[1723420526283,0.000827,58895.0,58894.0,2.13583031]
[1723420526684,0.000827,58895.0,58894.0,2.1358123]
[1723420529774,0.000827,58895.0,58894.0,2.0428123]
[1723420529915,0.000827,58895.0,58894.0,2.1238253]
[1723420530125,0.000827,58895.0,58894.0,1.66554421]
[1723420530338,0.000827,58895.0,58894.0,1.94756634]
[1723420531299,0.000827,58895.0,58894.0,2.12383173]
[1723420531417,0.010827,58895.0,58894.0,1.73605199]
[1723420531622,0.010827,58895.0,58894.0,1.60264421]
[1723420531828,0.010827,58895.0,58894.0,1.52414421]
[1723420532031,0.010827,58895.0,58894.0,1.58365006]
[1723420532226,0.020827,58895.0,58894.0,0.7202019]
[1723420532472,0.081827,58895.0,58894.0,0.16991926]
[1723420532843,0.09981819,58895.0,58894.0,0.16991926]
[1723420533043,0.15821819,58895.0,58894.0,0.16991926]
[1723420533289,0.29405219,58895.0,58894.0,0.15591926]
[1723420533529,0.15821819,58895.0,58894.0,0.04408583]
[1723420533730,0.15821819,58895.0,58894.0,0.05808583]
[1723420533966,1.70839019,58895.0,58894.0,0.0289097]
[1723420534168,1.70839019,58895.0,58894.0,0.0149097]
[1723420534350,1.73571317,58895.0,58894.0,0.0149097]
[1723420534576,1.73671317,58895.0,58894.0,0.0289097]
[1723420534713,1.73671317,58895.0,58894.0,0.0149097]
[1723420535100,1.73671317,58895.0,58894.0,0.0069097]
[1723420535497,1.73671317,58895.0,58894.0,0.0149097]
[1723420535498,1.73571317,58895.0,58894.0,0.0149097]
[1723420535923,1.65671317,58895.0,58894.0,0.0149097]
[1723420536459,1.64671317,58895.0,58894.0,0.0009097]
[1723420536812,1.61939019,58895.0,58894.0,0.0009097]
[1723420537005,1.65669261,58895.0,58894.0,0.0009097]
[1723420537366,1.62939019,58895.0,58894.0,0.0009097]
[1723420537568,1.65662958,58895.0,58894.0,0.0009097]
[1723420538280,1.66262958,58895.0,58894.0,0.0009097]
[1723420538481,1.65462958,58895.0,58894.0,0.0009097]
[1723420538851,1.65762958,58895.0,58894.0,0.0009097]
[1723420539056,1.92929858,58895.0,58894.0,0.0009097]
[1723420539473,1.92929858,58895.0,58894.0,0.0029097]
[1723420540247,1.65762958,58895.0,58894.0,0.0029097]
[1723420540514,1.65775745,58895.0,58894.0,0.0029097]
[1723420540744,1.92942645,58895.0,58894.0,0.0029097]
[1723420540943,1.65775745,58895.0,58894.0,0.0029097]
[1723420541688,1.92942645,58895.0,58894.0,0.0029097]
[1723420542543,1.65775745,58895.0,58894.0,0.0029097]
[1723420543419,1.63039019,58895.0,58894.0,0.0029097]